bitfinex-derivatives/quotes_SOLF0:USTF0_20251211
["timestamp","ask_amount","ask_price","bid_price","bid_amount"]
[1765487542070,114.17488476,137.44,137.36,1.71815461]
[1765487542378,6.5504,137.39,137.35,3.24]
[1765487542674,114.2451687,137.41,137.34,61.88]
[1765487542675,0.05128394,137.41,137.36,4.95704719]
[1765487542979,0.04645724,137.4,137.37,4.95704719]
[1765487543181,0.05332241,137.4,137.37,3.29060709]
[1765487543385,0.05332241,137.4,137.37,0.05060709]
[1765487543573,101.94112241,137.4,137.37,0.05060709]
[1765487543772,114.21918476,137.38,137.3,3.24]
[1765487543969,6.5516,137.36,137.32,4.95755299]
[1765487544284,12.31678476,137.38,137.32,3.24]
[1765487544676,0.0517614,137.36,137.34,0.05001943]
[1765487545479,6.5493,137.41,137.34,3.29001943]
[1765487545676,6.5493,137.41,137.35,1.71681]
[1765487546587,0.04982563,137.39,137.35,4.95681]
[1765487546784,0.04982563,137.39,137.36,3.24]
[1765487547678,0.04982563,137.39,137.34,3.29001943]
[1765487547883,0.04982563,137.39,137.35,1.71553371]
[1765487548187,0.04982563,137.39,137.35,4.95553371]
[1765487548387,0.04982563,137.39,137.36,3.24]
[1765487550292,0.04982563,137.39,137.34,3.29001943]
[1765487550474,0.04982563,137.39,137.36,1.71520317]
[1765487550785,0.04982563,137.39,137.36,4.95520317]
[1765487551087,0.04982563,137.39,137.36,3.24]
[1765487552379,0.04982563,137.39,137.38,3.24]
[1765487553279,114.15978476,137.46,137.38,3.24]
[1765487553476,101.848,137.45,137.38,3.24]
[1765487553780,6.5476,137.45,137.38,3.24]
[1765487553988,12.31678476,137.46,137.39,3.24]
[1765487554388,6.59851618,137.44,137.41,3.2914936]
[1765487554591,0.05071618,137.44,137.41,3.2914936]
[1765487554776,0.05071618,137.44,137.41,0.0514936]
[1765487555183,101.90881618,137.44,137.41,0.0514936]
[1765487555387,6.5485,137.43,137.41,0.0514936]
[1765487555883,0.05071618,137.44,137.42,9.7886]
[1765487555884,0.00071618,137.44,137.42,9.7886]
[1765487556092,61.84,137.5,137.43,4.95265458]
[1765487556093,101.8131,137.5,137.43,4.95265458]
[1765487556280,101.8131,137.5,137.43,3.24]
[1765487556483,101.847,137.45,137.36,3.24]
[1765487556684,12.31678476,137.43,137.37,1.71404754]
[1765487556886,101.8936,137.39,137.32,3.24]
[1765487557083,101.8936,137.39,137.29,3.24]
[1765487557084,12.31678476,137.37,137.29,3.24]
[1765487557287,101.9143,137.36,137.32,0.05340476]
[1765487557883,6.5524,137.35,137.32,0.05340476]
[1765487558090,114.21038476,137.39,137.32,3.29340476]
[1765487558492,6.5504,137.39,137.32,3.29340476]
[1765487558790,12.31678476,137.38,137.32,3.29340476]
[1765487558985,12.31678476,137.38,137.32,0.05340476]
[1765487559992,6.551,137.38,137.32,0.05340476]
[1765487560788,108.4502,137.38,137.32,0.05340476]
[1765487561184,12.31678476,137.37,137.32,0.05340476]
[1765487561387,6.5516,137.36,137.32,0.05340476]
[1765487562296,12.31678476,137.37,137.32,3.29340476]
[1765487562690,6.5507,137.38,137.32,3.29340476]
[1765487563394,6.5515,137.37,137.32,0.05340476]
[1765487563786,101.9147,137.36,137.32,0.05340476]
[1765487563992,12.31678476,137.37,137.32,0.05340476]
[1765487564297,114.22628476,137.37,137.32,0.05340476]
[1765487564798,6.5523,137.35,137.32,0.05340476]
[1765487566496,6.5513,137.37,137.32,3.29340476]
[1765487566800,12.31678476,137.4,137.33,1.71959125]
[1765487567000,12.31678476,137.4,137.35,0.05464676]
[1765487567909,101.8918,137.39,137.35,0.05464676]
[1765487568504,6.5513,137.37,137.35,0.05464676]
[1765487571208,6.5528,137.34,137.28,3.06]
[1765487571508,6.5528,137.34,137.3,4.78118115]
[1765487571694,6.5528,137.34,137.3,3.06]
[1765487572007,6.5536,137.32,137.28,3.06]
[1765487572201,0.05308881,137.31,137.29,0.04653617]
[1765487572404,0.05308881,137.31,137.29,3.10653617]
[1765487572803,0.05308881,137.31,137.29,0.04653617]
[1765487573397,6.60718881,137.31,137.29,0.04653617]
[1765487573598,0.05308881,137.31,137.29,3.10653617]
[1765487574010,12.31678476,137.39,137.31,3.06]
[1765487574207,61.86,137.39,137.31,3.06]
[1765487574402,61.86,137.39,137.32,1.72026891]
[1765487574711,68.92868659,137.39,137.32,1.72026891]
[1765487575102,6.5517,137.36,137.34,0.05231759]
[1765487575401,13.62038659,137.36,137.34,0.05231759]
[1765487575596,6.5535,137.32,137.29,3.06]
[1765487575807,6.5535,137.32,137.26,3.06]
[1765487576011,7.06868659,137.33,137.28,4.78276337]
[1765487576211,7.06868659,137.33,137.25,9.5182142]
[1765487576212,109.00768659,137.33,137.25,9.5182142]
[1765487576413,109.00768659,137.33,137.27,1.7230813]
[1765487576597,0.05286503,137.31,137.29,0.05268493]
[1765487576803,6.5545,137.3,137.29,0.05268493]
[1765487579609,6.556,137.27,137.23,61.86]
[1765487579819,204.0305,137.23,137.19,4.97326379]
[1765487580002,102.0851,137.13,137.06,3.06]
[1765487580316,7.06868659,137.11,137.02,3.06]
[1765487580516,68.92868659,137.11,137.02,3.06]
[1765487580719,0.05583256,137.08,137.06,3.06]
[1765487580912,7.06868659,137.12,137.07,1.7293305]
[1765487581123,68.4221,137.14,137.08,3.06]
[1765487581415,6.5629,137.13,137.08,3.06]
[1765487581811,0.05094157,137.12,137.09,0.05043839]
[1765487582606,0.05094157,137.12,137.09,3.11043839]
[1765487583008,0.05094157,137.12,137.09,0.05043839]
[1765487583318,6.61404157,137.12,137.09,0.05043839]
[1765487583506,102.1391,137.06,136.99,3.06]
[1765487583713,102.1391,137.06,137.01,4.77919221]
[1765487583912,109.20778659,137.06,137.01,3.06]
[1765487584320,102.1672,137.02,136.95,3.06]
[1765487584507,0.0511495,137.0,136.97,4.82786298]
[1765487584708,0.0511495,137.0,136.97,0.05054709]
[1765487584921,6.6199495,137.0,136.97,1.76805494]
[1765487585107,6.6199495,137.0,136.97,3.11054709]
[1765487585108,0.0511495,137.0,136.97,3.11054709]
[1765487585311,0.0511495,137.0,136.98,4.77261828]
[1765487585512,7.06868659,137.06,136.99,3.06]
[1765487585724,7.06868659,137.06,137.0,1.71169769]
[1765487586215,102.1472,137.05,137.0,1.71169769]
[1765487586518,0.05327024,137.04,137.01,0.04786497]
[1765487586912,102.20727024,137.04,137.01,0.04786497]
[1765487587422,108.77457024,137.04,137.01,0.04786497]
[1765487587816,6.62057024,137.04,137.01,0.04786497]
[1765487588014,0.05327024,137.04,137.01,3.10786497]
[1765487588517,13.63318659,137.09,137.03,3.06]
[1765487589018,109.16338659,137.12,137.03,3.06]
[1765487589213,109.16338659,137.12,137.04,4.76014195]
[1765487589414,108.6631,137.11,137.04,3.06]
[1765487589724,6.5635,137.11,137.06,3.11289987]
[1765487590721,6.5635,137.11,137.06,0.05289987]
[1765487591420,108.6714,137.1,137.06,0.05289987]
[1765487591622,108.6714,137.1,136.98,3.06]
[1765487591623,102.1441,137.06,136.98,3.06]
[1765487591918,109.21368659,137.05,136.99,1.69954393]
[1765487592121,13.63548659,137.05,136.99,4.75954393]
[1765487592322,102.1298,137.07,137.0,4.75954393]
[1765487592626,0.0507877,137.05,137.02,0.0541833]
[1765487593520,6.5668,137.04,137.02,0.0541833]
[1765487593721,6.5668,137.04,136.97,3.06]
[1765487593722,102.165,137.03,136.97,3.06]
[1765487594027,7.06868659,137.02,136.97,3.06]
[1765487594920,6.61738816,137.01,136.98,0.05467624]
[1765487595622,0.04908816,137.01,136.98,3.17467624]
[1765487596319,0.04908816,137.01,136.98,0.05467624]
[1765487597425,0.04908816,137.01,136.98,3.17467624]
[1765487599420,0.04908816,137.01,137.0,3.15]
[1765487599730,0.04908816,137.01,136.98,3.20467624]
[1765487603123,0.04908816,137.01,137.0,3.15]
[1765487603322,0.04908816,137.01,136.98,3.20467624]
[1765487605025,0.04908816,137.01,136.98,0.05467624]
[1765487605528,0.04908816,137.01,136.98,3.20467624]
[1765487605733,0.04908816,137.01,136.98,0.05467624]
[1765487605928,0.04908816,137.01,136.98,3.20467624]
[1765487607119,7.06868659,137.08,136.99,1.69441112]
[1765487607323,7.06868659,137.08,137.01,3.15]
[1765487607519,6.565,137.08,137.01,3.15]
[1765487607723,102.1073,137.1,137.01,3.15]
[1765487608027,102.1073,137.1,137.02,1.69401726]
[1765487608238,0.04784538,137.07,137.05,0.05257424]
[1765487609123,6.61334538,137.07,137.05,0.05257424]
[1765487611834,0.04784538,137.07,137.05,0.05257424]
[1765487612128,0.04784538,137.07,137.05,3.20257424]
[1765487614234,102.0876,137.13,137.05,3.20257424]
[1765487614235,7.06868659,137.13,137.06,1.69972705]
[1765487614423,109.15888659,137.13,137.07,3.15]
[1765487614628,6.5647,137.09,137.03,3.15]
[1765487614828,6.5647,137.09,137.05,4.85109343]
[1765487615129,6.5637,137.11,137.06,3.20291506]
[1765487615335,0.02518116,137.08,137.06,3.20291506]
[1765487616134,0.02518116,137.08,137.07,4.85236644]
[1765487616334,0.02518116,137.08,137.07,3.15]
[1765487619236,13.63108659,137.14,137.07,9.7153]
[1765487619435,13.63108659,137.14,137.09,3.15]
[1765487620336,13.63108659,137.14,137.1,0.04775334]
[1765487620841,7.06868659,137.14,137.1,0.04775334]
[1765487621041,5.36816645,137.19,137.11,1.71435323]
[1765487621237,7.06868659,137.2,137.15,3.15]
[1765487622041,13.62798659,137.2,137.15,3.15]
[1765487622539,6.5598,137.19,137.15,3.15]
[1765487622736,6.5598,137.19,137.14,0.04642651]
[1765487622737,102.0298,137.21,137.14,3.19642651]
[1765487623038,109.09848659,137.21,137.16,0.04963251]
[1765487623935,7.06868659,137.21,137.16,3.19963251]
[1765487624143,109.07448659,137.24,137.16,3.19963251]
[1765487624439,109.07448659,137.24,137.17,1.72259669]
[1765487624632,109.07448659,137.24,137.19,0.05368791]
[1765487625138,6.5588,137.21,137.19,0.05368791]
[1765487628735,6.5582,137.23,137.19,3.20368791]
[1765487628943,7.06868659,137.25,137.2,1.71668667]
[1765487629134,7.06868659,137.25,137.19,3.20368791]
[1765487629135,6.5583,137.22,137.19,3.20368791]
[1765487629536,102.0112,137.23,137.19,0.05368791]
[1765487629842,6.5588,137.21,137.19,0.05368791]
[1765487630939,6.5608,137.17,137.13,65.07]
[1765487631237,109.14128659,137.15,137.06,3.11]
[1765487631444,109.14128659,137.15,137.08,1.719175]
[1765487632030,6.5631,137.12,137.1,0.04878758]
[1765487634347,13.63178659,137.12,137.1,0.04878758]
[1765487634644,109.16818659,137.12,137.05,65.07]
[1765487635147,6.5638,137.11,137.05,65.07]
[1765487635343,7.06868659,137.09,137.01,3.11]
[1765487635538,0.0528656,137.06,137.04,1.77096751]
[1765487635745,0.05191675,137.06,137.04,0.04851768]
[1765487635938,109.21298659,137.05,136.98,3.11]
[1765487636249,7.06868659,137.05,136.99,4.83403655]
[1765487636444,7.06868659,137.05,136.99,3.11]
[1765487636650,102.1303,137.07,136.99,3.11]
[1765487637145,0.04992085,137.04,137.02,0.05554509]
[1765487639240,6.61702085,137.04,137.02,0.05554509]
[1765487639444,0.04992085,137.04,137.02,0.05554509]
[1765487640744,102.16,137.03,136.94,3.11]
[1765487640949,102.16,137.03,136.96,1.72486949]
[1765487641244,114.51774927,137.04,136.97,1.72486949]
[1765487641451,114.51774927,137.04,136.96,3.11]
[1765487641649,0.04770186,137.01,136.99,3.16004726]
[1765487641840,108.82313143,137.13,136.99,3.16004726]
[1765487641841,102.0996,137.11,137.0,3.11]
[1765487642041,102.0996,137.11,137.03,3.11]
[1765487642255,6.5642,137.1,137.03,3.11]
[1765487642749,0.04600672,137.08,137.05,0.05208646]
[1765487644455,6.5657,137.07,137.05,0.05208646]
[1765487644852,0.04600672,137.08,137.05,3.16208646]
[1765487646746,114.43154927,137.16,137.07,3.11]
[1765487646747,102.0655,137.16,137.07,3.11]
[1765487646954,102.0655,137.16,137.08,1.72349287]
[1765487647148,6.5628,137.13,137.07,9.6752]
[1765487647348,102.0655,137.16,137.09,3.11]
[1765487647554,102.049,137.18,137.09,3.11]
[1765487647756,102.0286,137.21,137.12,3.1562608]
[1765487647757,0.05356798,137.15,137.12,3.1562608]
[1765487648659,0.05356798,137.15,137.12,0.0462608]
[1765487649856,6.5625,137.14,137.12,0.0462608]
[1765487650952,102.1177,137.09,137.03,3.11]
[1765487651356,102.133,137.07,136.99,3.11]
[1765487651552,102.1383,137.06,137.0,1.72768384]
[1765487651750,0.0501751,137.04,137.02,0.05515298]
[1765487651947,0.0501751,137.04,137.02,3.16515298]
[1765487652562,6.6173751,137.04,137.02,0.05515298]
[1765487652856,102.1617,137.03,136.95,3.11]
[1765487653064,102.1673,137.02,136.96,1.72874907]
[1765487653758,6.5691,137.0,136.97,3.11]
[1765487653958,6.61806698,137.0,136.97,3.16109115]
[1765487654550,0.04896698,137.0,136.97,3.16109115]
[1765487654754,114.49164927,137.08,136.99,3.36]
[1765487654755,102.1256,137.08,136.99,3.36]
[1765487654953,102.1167,137.09,136.99,3.36]
[1765487655158,102.1167,137.09,137.01,5.08653575]
[1765487655359,6.5655,137.07,137.01,3.36]
[1765487655656,6.5655,137.07,137.02,1.72584128]
[1765487655856,0.04778971,137.06,137.03,3.40955021]
[1765487656254,6.61388971,137.06,137.03,3.40955021]
[1765487656456,0.04778971,137.06,137.03,0.04955021]
[1765487656865,6.5664,137.05,137.03,0.04955021]
[1765487657058,0.04778971,137.06,137.03,3.40955021]
[1765487657259,102.1681,137.02,136.95,3.36]
[1765487657468,102.1614,137.03,136.96,1.72704174]
[1765487657862,6.5677,137.03,136.97,3.36]
[1765487658267,0.0479852,137.01,136.99,0.05371567]
[1765487658968,102.1941,136.99,136.89,6.5737]
[1765487659169,102.1941,136.99,136.9,1.72943033]
[1765487659770,102.1941,136.99,136.91,1.72943033]
[1765487660066,0.0524554,136.96,136.94,0.04803411]
[1765487661160,0.0524554,136.96,136.94,3.13803411]
[1765487661464,0.0524554,136.96,136.94,0.04803411]
[1765487663170,0.0524554,136.96,136.94,3.13803411]
[1765487663865,319.28028702,137.14,136.96,3.09]
[1765487663866,102.1487,137.05,136.96,3.09]
[1765487664071,102.138,137.06,136.97,4.81147777]
[1765487664268,102.138,137.06,136.98,3.09]
[1765487664572,6.5671,137.04,136.98,9.6595]
[1765487664774,164.1301,137.07,136.99,4.80959912]
[1765487664979,0.04772048,137.02,137.0,3.14554297]
[1765487665184,0.04605692,137.02,137.0,3.14554297]
[1765487666875,0.04605692,137.02,137.0,9.71414297]
[1765487667072,176.46634927,137.11,137.01,3.09]
[1765487667073,6.5652,137.08,137.01,3.09]
[1765487668171,0.05583288,137.06,137.03,0.05535867]
[1765487669576,6.5666,137.05,137.03,0.05535867]
[1765487669975,103.6063,137.05,136.96,3.09]
[1765487670279,114.51234927,137.05,136.97,1.72304859]
[1765487670872,0.0533472,137.02,137.0,0.05068581]
[1765487672269,0.0533472,137.02,137.0,3.14068581]
[1765487672576,0.0533472,137.02,137.01,3.09]
[1765487675079,0.0533472,137.02,137.0,3.14068581]
[1765487676575,0.0533472,137.02,137.0,0.05068581]
[1765487677374,6.6212472,137.02,137.0,0.05068581]
[1765487680681,6.6212472,137.02,136.92,3.09]
[1765487680682,102.1778,137.01,136.92,3.09]
[1765487680884,102.1849,137.0,136.93,4.82537817]
[1765487681080,6.5698,136.98,136.93,3.09]
[1765487681286,102.1738,137.02,136.95,3.09]
[1765487681790,0.05228239,137.0,136.97,0.0478075]
[1765487682887,6.62138239,137.0,136.97,0.0478075]
[1765487683887,0.05228239,137.0,136.97,3.1378075]
[1765487686689,102.1098,137.1,136.99,3.09]
[1765487686893,107.5126349,137.1,137.0,3.09]
[1765487687084,112.31804494,137.1,137.01,3.09]
[1765487687894,6.6134422,137.06,137.04,0.05439047]
[1765487688290,0.0472422,137.06,137.04,3.14439047]
[1765487689397,0.0472422,137.06,137.04,0.05439047]
[1765487691000,6.6133422,137.06,137.04,0.05439047]
[1765487692195,0.0472422,137.06,137.04,3.29439047]
[1765487692399,102.0923,137.12,137.04,3.29439047]
[1765487692697,66.94084363,137.14,137.07,3.24]
[1765487692698,62.0,137.14,137.07,3.24]
[1765487692887,106.99383132,137.17,137.07,3.24]
[1765487693091,102.063,137.16,137.07,3.24]
[1765487693488,0.0550469,137.13,137.1,0.0486882]
[1765487694197,0.0550469,137.13,137.1,3.2886882]
[1765487695500,0.0550469,137.13,137.12,3.24]
[1765487696197,0.0550469,137.13,137.1,3.2886882]
[1765487696398,0.0550469,137.13,137.11,1.72815029]
[1765487696702,0.0550469,137.13,137.1,3.2886882]
[1765487696907,0.0550469,137.13,137.1,0.0486882]
[1765487698005,6.5632,137.12,137.1,3.2886882]
[1765487698190,0.0550469,137.13,137.1,3.2886882]
[1765487698595,6.6178469,137.13,137.1,3.2886882]
[1765487699101,6.6178469,137.13,137.1,0.0486882]
[1765487699296,6.6178469,137.13,137.1,3.2886882]
[1765487700210,102.0683,137.16,137.1,3.2886882]
[1765487700398,21.86,137.3,137.16,3.24]
[1765487700701,101.9538,137.31,137.22,3.24]
[1765487700907,101.9538,137.31,137.19,3.24]
[1765487701102,7.09171739,137.32,137.21,1.72211317]
[1765487701296,7.09171739,137.32,137.22,3.24]
[1765487701501,0.04924609,137.28,137.26,3.24]
[1765487701700,109.03631739,137.32,137.26,3.24]
[1765487702006,69.07171739,137.35,137.26,3.28923608]
[1765487702007,0.05419322,137.28,137.26,3.28923608]
[1765487702304,0.05295711,137.28,137.26,3.29277321]
[1765487702699,0.05295711,137.28,137.27,3.24]
[1765487702904,7.09171739,137.37,137.27,3.24]
[1765487703105,61.98,137.34,137.27,3.24]
[1765487703300,101.9139,137.36,137.27,9.7955]
[1765487703705,101.9139,137.36,137.23,109.09911739]
[1765487703706,13.64581739,137.31,137.23,3.24]
[1765487703913,0.0476957,137.28,137.26,0.04724233]
[1765487704407,101.981,137.27,137.18,3.24]
[1765487704598,7.09171739,137.28,137.19,103.74873222]
[1765487704802,61.96,137.32,137.24,3.24]
[1765487705002,101.9362,137.33,137.24,3.24]
[1765487705401,0.0471702,137.3,137.27,0.05412024]
[1765487706503,0.0471702,137.3,137.27,3.29412024]
[1765487707608,0.0471702,137.3,137.27,105.27462024]
[1765487707805,7.09171739,137.4,137.3,105.1975]
[1765487708006,61.94,137.39,137.31,3.24]
[1765487708708,68.4905,137.39,137.31,3.24]
[1765487708904,0.05304262,137.36,137.34,0.04741865]
[1765487710614,101.923,137.35,137.26,3.24]
[1765487710808,101.9139,137.36,137.29,1.69393895]
[1765487711111,101.8794,137.41,137.31,3.24]
[1765487711313,61.92,137.4,137.34,4.93393895]
[1765487711508,101.8926,137.39,137.29,3.24]
[1765487711711,0.05521383,137.35,137.33,0.04909322]
[1765487712902,61.97521383,137.35,137.33,0.04909322]
[1765487713614,61.97521383,137.35,137.33,3.28909322]
[1765487713914,61.97521383,137.35,137.33,0.04909322]
[1765487714111,0.05521383,137.35,137.33,0.04909322]
[1765487714311,68.50721383,137.35,137.33,0.04909322]
[1765487714506,101.9312,137.34,137.24,3.34]
[1765487714812,61.9,137.33,137.29,3.34]
[1765487715206,6.5527,137.34,137.3,1.68577575]
[1765487715402,0.05495474,137.33,137.31,0.04961233]
[1765487715609,61.95495474,137.33,137.31,0.04961233]
[1765487716509,0.05495474,137.33,137.31,3.38961233]
[1765487717112,6.5507,137.38,137.33,3.34]
[1765487717315,61.9,137.37,137.33,3.34]
[1765487717504,61.9,137.38,137.35,3.34]
[1765487718208,0.05133279,137.38,137.35,3.39453342]
[1765487718802,0.05133279,137.38,137.36,4.92997097]
[1765487719008,0.05133279,137.38,137.36,3.25]
[1765487719412,6.5489,137.42,137.37,1.67836666]
[1765487719612,101.8772,137.41,137.37,1.67836666]
[1765487719816,101.8716,137.42,137.36,1.67836666]
[1765487719817,101.893,137.39,137.36,1.67836666]
[1765487720015,7.09171739,137.37,137.3,3.25]
[1765487720218,13.64301739,137.37,137.33,4.92939998]
[1765487720406,0.05494133,137.36,137.34,0.04714429]
[1765487720603,6.60664133,137.36,137.34,0.04714429]
[1765487720911,101.937,137.33,137.26,3.25]
[1765487721217,163.817,137.33,137.28,4.93058516]
[1765487721415,68.97171739,137.33,137.28,3.25]
[1765487721814,0.05157745,137.32,137.29,0.05362112]
[1765487722012,0.05157745,137.32,137.29,3.30362112]
[1765487722317,0.05157745,137.32,137.31,3.25]
[1765487722927,61.88,137.38,137.31,3.25]
[1765487723115,61.88,137.37,137.33,3.25]
[1765487723809,0.0469245,137.36,137.34,0.04906055]
[1765487724420,0.0469245,137.36,137.34,3.29906055]
[1765487724814,0.0469245,137.36,137.34,0.04906055]
[1765487725411,6.5987245,137.36,137.34,0.04906055]
[1765487725617,0.0469245,137.36,137.34,3.29906055]
[1765487726113,0.0469245,137.36,137.34,0.04906055]
[1765487726315,0.0469245,137.36,137.34,3.29906055]
[1765487726918,0.0469245,137.36,137.34,0.04906055]
[1765487727117,7.13864189,137.36,137.34,0.04906055]
[1765487727326,101.9218,137.35,137.3,3.25]
[1765487727523,101.9218,137.35,137.23,102.0073]
[1765487727524,7.09171739,137.33,137.24,3.25]
[1765487727831,7.09171739,137.33,137.3,3.25]
[1765487728322,0.0558574,137.33,137.3,3.30200405]
[1765487729024,7.14757479,137.33,137.3,0.05200405]
[1765487729229,109.08667479,137.33,137.3,0.05200405]
[1765487729431,101.9535,137.31,137.22,3.25]
[1765487729614,6.556,137.27,137.24,3.25]
[1765487729926,7.09171739,137.29,137.24,3.25]
[1765487730329,0.05266891,137.28,137.25,0.04662517]
[1765487730726,6.60816891,137.28,137.25,0.04662517]
[1765487730932,6.60816891,137.28,137.25,3.29662517]
[1765487731133,6.60816891,137.28,137.25,0.04662517]
[1765487731632,6.60816891,137.28,137.25,3.29662517]
[1765487731832,6.60816891,137.28,137.25,0.04662517]
[1765487732033,6.5561,137.27,137.25,0.04662517]
[1765487733224,0.05266891,137.28,137.25,0.04662517]
[1765487733631,0.05266891,137.28,137.25,3.29662517]
[1765487734336,0.05266891,137.28,137.25,0.04662517]
[1765487734519,7.09171739,137.26,137.14,102.0724]
[1765487734828,7.09171739,137.23,137.19,3.25]
[1765487735431,61.88,137.25,137.19,3.25]
[1765487735636,0.04767161,137.23,137.21,3.30465255]
[1765487736521,0.04767161,137.23,137.21,0.05465255]
[1765487737335,0.04767161,137.23,137.21,3.30465255]
[1765487738137,7.139389,137.23,137.21,0.05465255]
[1765487738334,101.9611,137.3,137.21,3.30465255]
[1765487738519,68.97171739,137.29,137.23,3.25]
[1765487738720,101.9764,137.28,137.17,3.25]
[1765487738930,101.9764,137.28,137.2,1.71146959]
[1765487738931,109.08281739,137.26,137.2,1.71146959]
[1765487739243,7.09171739,137.23,137.2,3.25]
[1765487739426,7.14718236,137.23,137.2,3.29606133]
[1765487739629,69.02718236,137.23,137.2,0.04606133]
[1765487739931,0.05546497,137.23,137.2,3.29606133]
[1765487740432,0.05546497,137.23,137.22,3.25]
[1765487740636,0.05546497,137.23,137.2,3.29606133]
[1765487741332,7.09171739,137.28,137.23,3.25]
[1765487741935,61.9,137.29,137.23,3.25]
[1765487742137,5.33593983,137.33,137.25,3.25]
[1765487742439,0.05391124,137.3,137.29,3.25]
[1765487742637,0.04590318,137.31,137.29,3.25]
[1765487742842,0.04590318,137.31,137.28,3.3005101]
[1765487743028,0.04590318,137.31,137.29,1.71669019]
[1765487743226,0.04590318,137.31,137.29,4.96669019]
[1765487743528,7.13762057,137.31,137.28,0.0505101]
[1765487745835,7.13762057,137.31,137.19,102.0369]
[1765487745836,101.9867,137.27,137.16,3.25]
[1765487746027,101.9867,137.27,137.15,102.0666]
[1765487746028,7.09171739,137.25,137.2,4.97589728]
[1765487746336,75.54881739,137.25,137.2,3.25]
[1765487746741,0.05407604,137.24,137.21,0.05221932]
[1765487746939,7.09171739,137.21,137.14,3.25]
[1765487747235,0.04907034,137.19,137.17,4.97694092]
[1765487747433,0.04907034,137.19,137.18,4.97694092]
[1765487747639,61.88,137.23,137.19,3.25]
[1765487747836,7.09171739,137.25,137.19,3.25]
[1765487748235,7.09171739,137.25,137.2,1.72467931]
[1765487748441,7.09171739,137.25,137.21,3.25]
[1765487748641,0.04908021,137.24,137.22,0.05161465]
[1765487748944,0.04908021,137.24,137.22,3.32161465]
[1765487749132,7.09171739,137.28,137.23,4.99397211]
[1765487749331,7.09171739,137.28,137.24,3.27]
[1765487749539,7.09171739,137.28,137.22,0.05161465]
[1765487750041,7.09171739,137.25,137.22,0.05161465]
[1765487750241,102.0107,137.23,137.14,3.27]
[1765487750540,109.12791739,137.2,137.09,3.27]
[1765487750744,7.09171739,137.2,137.14,4.99750524]
[1765487751044,7.09171739,137.22,137.16,4.99750524]
[1765487751231,0.04648443,137.2,137.18,0.05385956]
[1765487751432,0.04648443,137.2,137.18,0.0496589]
[1765487751839,0.04648443,137.2,137.18,3.3196589]
[1765487753036,0.04648443,137.2,137.19,3.27]
[1765487754047,7.09171739,137.26,137.2,3.27]
[1765487754252,7.09171739,137.29,137.22,3.27]
[1765487754443,107.28752688,137.32,137.22,3.27]
[1765487754444,7.09171739,137.32,137.25,1.72182358]
[1765487754742,7.09171739,137.32,137.23,3.27]
[1765487754743,6.5546,137.3,137.23,3.27]
[1765487754932,6.5546,137.3,137.26,3.27]
[1765487755130,0.0506267,137.29,137.27,0.04603806]
[1765487755348,13.69734409,137.29,137.27,0.04603806]
[1765487755944,6.5557,137.28,137.21,9.8284]
[1765487756145,7.09171739,137.29,137.23,4.99138335]
[1765487756350,7.09171739,137.29,137.23,3.27]
[1765487756649,6.5547,137.3,137.23,9.8276]
[1765487756950,0.05101353,137.28,137.25,3.32375209]
[1765487757146,0.05101353,137.28,137.26,4.99059005]
[1765487757350,0.05101353,137.28,137.26,3.27]
[1765487758243,176.14111859,137.36,137.27,4.99059364]
[1765487758449,176.14111859,137.36,137.28,1.72040184]
[1765487758645,177.40869344,137.36,137.28,1.72040184]
[1765487758950,6.5524,137.35,137.28,1.72040184]
[1765487759151,0.05100844,137.33,137.3,0.0505537]
[1765487759552,12.37232703,137.33,137.3,0.0505537]
[1765487759755,0.05100844,137.33,137.3,3.3205537]
[1765487760347,0.05100844,137.33,137.32,3.27]
[1765487760540,0.05100844,137.33,137.3,3.3205537]
[1765487760845,0.05100844,137.33,137.3,0.0505537]
[1765487761256,0.05100844,137.33,137.3,3.3205537]
[1765487761559,61.9,137.39,137.32,3.27]
[1765487762245,6.5513,137.37,137.32,3.27]
[1765487762451,101.9077,137.37,137.33,0.0506359]
[1765487762743,61.9,137.39,137.33,3.3206359]
[1765487762948,61.9,137.39,137.35,3.27]
[1765487763359,101.8705,137.42,137.35,3.27]
[1765487763548,61.9,137.43,137.37,0.05271732]